bitfinex/quotes_ETHUSD_20220106
["timestamp","ask_amount","ask_price","bid_price","bid_amount"]
[1641467452546,0.00511581,3355.1,3355.0,7.55585122]
[1641467452796,0.00511581,3355.1,3355.0,6.81052122]
[1641467453195,0.00511581,3355.1,3355.0,5.48853544]
[1641467453495,0.00511581,3355.1,3355.0,2.9]
[1641467460998,1.0,3355.8,3355.0,2.9]
[1641467461199,0.95,3355.8,3355.0,2.9]
[1641467461399,0.00341054,3355.7,3355.0,2.9]
[1641467461601,0.00341054,3355.7,3355.2,1.28364007]
[1641467461804,0.00284211,3355.6,3355.1,3.11002634]
[1641467462200,0.00227369,3355.5,3355.1,3.11002634]
[1641467462599,0.00170527,3355.4,3355.2,1.0]
[1641467462800,0.00170527,3355.4,3355.1,3.11002634]
[1641467462999,0.00113684,3355.3,3355.1,4.60028634]
[1641467463200,7.64993296,3356.6,3355.1,2.54085251]
[1641467463201,0.67020747,3356.5,3355.1,2.54085251]
[1641467463600,0.00625266,3356.4,3355.1,2.54085251]
[1641467463800,0.00625266,3356.4,3355.8,2.12904264]
[1641467464049,0.00568424,3356.3,3355.8,2.12904264]
[1641467464447,0.7452,3356.4,3355.8,2.12904264]
[1641467464448,0.00511582,3356.2,3355.8,2.12904264]
[1641467464947,0.7452,3356.4,3355.1,7.11012704]
[1641467464948,0.00454739,3356.1,3355.1,0.74523]
[1641467465148,0.74537,3355.6,3355.0,2.9]
[1641467465548,0.00113685,3355.5,3355.1,0.00113685]
[1641467466054,1.63076404,3355.5,3355.1,0.00113685]
[1641467466250,0.00113685,3355.5,3355.1,0.00113685]
[1641467467052,0.74541,3355.4,3355.1,0.00113685]
[1641467467449,0.00113685,3355.5,3355.1,0.00113685]
[1641467472044,0.74651685,3355.5,3355.1,0.00113685]
[1641467472247,0.00113685,3355.5,3355.1,0.00113685]
[1641467476615,1e-08,3355.6,3355.1,0.00113685]
[1641467476812,1e-08,3355.6,3355.1,0.00227369]
[1641467477614,1e-08,3355.6,3355.1,0.74753369]
[1641467478015,1e-08,3355.6,3355.2,0.00170527]
[1641467478948,1e-08,3355.6,3355.2,0.74682107]
[1641467479150,1e-08,3355.6,3355.3,2.94780271]
[1641467479350,1e-08,3355.6,3355.3,2.94893956]
[1641467479550,1e-08,3355.6,3355.3,0.00113685]
[1641467480154,1e-08,3355.6,3355.4,3.37039275]
[1641467480952,1e-08,3355.6,3355.3,6.30740992]
[1641467481353,1e-08,3355.6,3355.4,0.74514]
[1641467481752,1e-08,3355.6,3355.4,4.11553275]
[1641467482800,1e-08,3355.6,3355.5,3.37039275]
[1641467482999,1e-08,3355.6,3355.5,3.67039275]
[1641467483199,5.00000001,3355.6,3355.5,3.37039275]
[1641467485895,4.84665842,3355.6,3355.5,3.37039275]
[1641467488952,4.84665842,3355.6,3355.5,6.29288172]
[1641467489151,4.84665842,3355.6,3355.5,3.37039275]
[1641467491194,0.67020747,3356.5,3355.6,1.85567623]
[1641467491402,0.67020747,3356.5,3356.2,0.01247493]
[1641467491597,0.00511581,3356.4,3356.2,2.24693553]
[1641467491794,0.00511581,3356.4,3356.3,0.3]
[1641467491995,0.67020747,3356.5,3356.3,0.3]
[1641467492395,0.67020747,3356.5,3356.4,16.09207653]
[1641467492797,0.67589171,3356.5,3356.4,16.09207653]
[1641467493196,0.67589171,3356.5,3356.4,6.86246928]
[1641467493398,0.67589171,3356.5,3356.4,11.91896822]
[1641467494043,0.67589171,3356.5,3356.4,6.86246928]
[1641467494244,0.67589171,3356.5,3356.4,5.37288928]
[1641467494645,0.67589171,3356.5,3356.4,3.37039275]
[1641467495245,0.58496776,3356.5,3356.4,3.37039275]
[1641467495446,0.58496776,3356.5,3356.3,0.74483]
[1641467495845,0.00511581,3356.4,3356.3,0.74483]
[1641467499899,0.00511581,3356.4,3356.3,3.64483]
[1641467501303,0.00511581,3356.4,3356.3,7.31410519]
[1641467501753,0.57631266,3356.5,3356.3,7.31410519]
[1641467501952,0.57631266,3356.5,3356.4,0.3]
[1641467502748,0.57631266,3356.5,3356.3,7.01410519]
[1641467502949,0.57631266,3356.5,3356.4,3.36927519]
[1641467504650,0.57631266,3356.5,3356.4,4.36927519]
[1641467504951,0.57631266,3356.5,3356.4,3.66927519]
[1641467505991,0.57631266,3356.5,3356.4,6.58573729]
[1641467506198,0.57631266,3356.5,3356.4,7.58573729]
[1641467506392,0.57631266,3356.5,3356.4,4.66927519]
[1641467506591,7.7497,3357.8,3357.3,1.01385226]
[1641467506795,3.7564,3357.8,3357.4,0.74478]
[1641467506993,0.00738951,3357.7,3357.3,1.78955]
[1641467507195,3.26378951,3357.8,3357.3,1.48955]
[1641467507397,0.00682108,3357.6,3357.4,0.00170527]
[1641467508196,0.00682108,3357.6,3356.6,4.4146]
[1641467508197,0.00682108,3357.6,3356.7,0.00568424]
[1641467508396,0.74494,3357.3,3357.1,0.74494]
[1641467508799,0.74494,3357.3,3357.2,0.00284212]
[1641467509744,13.77494,3357.3,3357.2,0.00284212]
[1641467510146,14.77494,3357.3,3357.2,0.00284212]
[1641467510544,16.93051,3357.3,3357.2,0.00284212]
[1641467512710,16.93051,3357.3,3355.8,0.74519]
[1641467512711,0.74519,3356.9,3355.8,0.74519]
[1641467512917,0.7452,3356.5,3355.7,5.05337859]
[1641467513208,0.78261606,3356.3,3355.9,0.00738951]
[1641467513408,0.69423348,3356.3,3355.9,0.00738951]
[1641467513608,1.43,3356.6,3356.0,1.84607308]
[1641467513810,0.74518,3356.4,3356.0,1.84607308]
[1641467514112,0.74518,3356.4,3356.1,0.00625266]
[1641467514508,0.07118739,3356.8,3356.1,0.00625266]
[1641467514709,0.43,3357.0,3356.1,3.37592505]
[1641467514909,0.43,3357.0,3356.3,0.74508]
[1641467515311,0.43,3357.0,3356.4,0.00454739]
[1641467515710,0.74507,3356.6,3356.4,0.00454739]
[1641467515912,0.74507,3356.6,3356.4,0.74960739]
[1641467516111,0.74507,3356.6,3356.4,0.74506]
[1641467516313,1.49014,3356.9,3356.5,0.00397896]
[1641467516951,1.49014,3356.9,3356.2,0.00568423]
[1641467517353,1.49014,3356.9,3356.5,0.74503]
[1641467517752,1.49014,3356.9,3356.6,0.00341054]
[1641467517953,0.74503,3356.8,3356.6,0.00341054]
[1641467518355,0.74503,3356.8,3356.5,0.00397896]
[1641467518554,0.74503,3356.8,3356.6,0.74502]
[1641467519059,0.74503,3356.8,3356.7,0.00284212]
[1641467519455,5.74503,3356.8,3356.7,0.00284212]
[1641467519656,6.74503,3356.8,3356.7,0.00284212]
[1641467520300,5.22888105,3356.8,3356.7,0.00284212]
[1641467520901,5.12888105,3356.8,3356.7,0.00284212]
[1641467521302,4.12888105,3356.8,3356.7,0.00284212]
[1641467523802,4.12888105,3356.8,3356.7,3.3718996]
[1641467525445,5.12888105,3356.8,3356.7,3.3718996]
[1641467525846,5.12888105,3356.8,3356.7,0.00284212]
[1641467527451,17.67888105,3356.8,3356.7,0.00284212]
[1641467527696,18.40888105,3356.8,3356.7,0.00284212]
[1641467527899,18.40888105,3356.8,3356.6,2.14774212]
[1641467527900,12.55,3356.7,3356.6,2.14774212]
[1641467528106,14.72528,3356.7,3356.6,2.14774212]
[1641467528901,2.17528,3356.7,3356.6,2.14774212]
[1641467529602,5.92528,3356.7,3356.6,2.14774212]
[1641467529799,2.17528,3356.7,3356.6,2.14774212]
[1641467530399,7.02528,3356.7,3356.6,2.14774212]
[1641467530600,2.17528,3356.7,3356.6,2.14774212]
[1641467531000,1.17528,3356.7,3356.6,3.76573889]
[1641467531200,0.74528,3356.7,3356.6,3.76573889]
[1641467531459,4.12888105,3356.8,3356.6,3.76573889]
[1641467532857,4.12888105,3356.8,3356.6,4.51072889]
[1641467534261,4.12888105,3356.8,3356.7,3.36916158]
[1641467536609,5.12888105,3356.8,3356.7,3.36916158]
[1641467539447,4.12888105,3356.8,3356.7,3.36916158]
[1641467542357,4.12795944,3356.8,3356.7,3.36916158]
[1641467548751,0.43,3358.2,3357.3,0.74471]
[1641467548951,3.7607,3358.8,3358.2,1.21746022]
[1641467549152,3.7607,3358.8,3357.5,0.74459]
[1641467549349,3.7607,3358.8,3357.5,1.04459]
[1641467549549,3.7607,3358.8,3357.5,0.3]
[1641467549949,3.7607,3358.8,3357.7,0.74459]
[1641467550203,3.7607,3358.8,3357.9,1.13667123]
[1641467550600,3.7607,3358.8,3358.0,0.3]
[1641467551007,1.0,3358.7,3358.2,0.74458]
[1641467552505,1.0,3358.7,3358.2,1.4891171]
[1641467553309,1.0,3358.7,3358.2,0.74458]
[1641467554260,0.74461,3358.9,3358.2,0.74458]
[1641467554460,1.0,3359.0,3358.3,0.3]
[1641467555058,1.0,3359.0,3358.3,1.3]
[1641467555261,1.0,3359.0,3358.4,12.6]
[1641467555463,1.0,3359.0,3358.3,2.0339]
[1641467555464,1.0,3359.0,3358.7,1.84345123]
[1641467555661,0.01250532,3358.9,3358.8,0.3]
[1641467555861,0.01250532,3358.9,3358.6,1.4886772]
[1641467555862,0.01250532,3358.9,3358.5,1.48865]
[1641467556262,0.0119369,3358.8,3358.5,1.48865]
[1641467556663,1.0,3359.0,3358.5,1.48865]
[1641467556664,0.01136847,3358.7,3358.5,1.48865]
[1641467556863,0.01136847,3358.7,3358.6,2.15830052]
[1641467557064,1.0,3359.0,3358.6,2.15830052]
[1641467557563,0.01250532,3358.9,3358.6,2.15830052]
[1641467557997,0.0119369,3358.8,3358.6,2.15830052]
[1641467558395,0.01136847,3358.7,3358.6,2.15830052]
[1641467559995,0.01136847,3358.7,3358.6,2.45830052]
[1641467560397,0.01136847,3358.7,3358.6,2.15830052]
[1641467560601,1.0,3359.0,3358.6,5.05830052]
[1641467560997,0.00113685,3358.9,3358.6,6.54726052]
[1641467561460,0.00113685,3358.9,3358.6,7.29171742]
[1641467561851,0.00113685,3358.9,3358.6,6.54726052]
[1641467569848,0.00113685,3358.9,3358.6,9.45045342]
[1641467570050,1.0,3359.0,3358.8,0.3]
[1641467570248,1.0,3359.0,3358.8,1.20392]
[1641467570950,1.0,3359.0,3358.8,1.94824]
[1641467571147,1.0,3359.0,3358.9,15.48714495]
[1641467571352,7.5564,3360.2,3359.4,0.74426]
[1641467571549,7.5564,3360.2,3359.5,3.4189959]
[1641467571750,0.00682108,3360.1,3359.4,0.3]
[1641467571951,0.00682108,3360.1,3359.5,0.74423]
[1641467572149,0.00625266,3360.0,3359.6,2.24158329]
[1641467572552,0.00568423,3359.9,3359.7,1.48842]
[1641467572802,0.00568423,3359.9,3359.7,1.78842]
[1641467573005,0.00511581,3359.8,3359.7,2.5326356]
[1641467573204,0.00511581,3359.8,3359.7,1.78842]
[1641467575203,0.00616339,3359.8,3359.7,1.78842]
[1641467580696,0.00616339,3359.8,3359.7,1.48842]
[1641467580898,0.00616339,3359.8,3359.2,1.48872]
[1641467581097,0.00616339,3359.8,3359.1,0.74447]
[1641467581300,0.00616339,3359.8,3359.7,2.9]
[1641467581301,0.00104758,3359.8,3359.7,2.9]
[1641467581700,0.00616339,3359.8,3359.7,2.9]
[1641467582198,0.75060339,3359.8,3359.7,2.9]
[1641467582800,0.75060339,3359.8,3359.7,0.0001]
[1641467582998,0.82179078,3359.8,3359.7,0.0001]
[1641467583400,12.55,3359.7,3358.7,0.00113685]
[1641467583601,0.74463,3359.2,3358.7,0.00113685]
[1641467583801,0.43,3359.1,3358.7,0.00113685]
[1641467584062,0.43,3359.1,3357.8,5.04954062]
[1641467584063,12.55,3359.0,3357.8,5.04954062]
[1641467584258,0.43,3358.9,3357.8,5.04954062]
[1641467584455,1.43113685,3358.9,3357.9,0.00454739]
[1641467584659,1.43113685,3358.9,3358.0,2.17800352]
[1641467584660,2.25930116,3358.8,3358.0,2.17800352]
[1641467584857,0.43,3358.7,3358.0,2.17800352]
[1641467585056,0.43,3358.7,3358.1,0.00341054]
[1641467585057,1.43,3358.7,3358.1,0.00341054]
[1641467585256,1.50118739,3358.7,3358.1,0.00341054]
[1641467585458,0.07118739,3358.6,3358.1,0.00341054]
[1641467585759,0.74474,3358.3,3358.1,0.00341054]
[1641467588209,0.74469,3358.5,3358.1,0.00341054]
[1641467590310,1.74469,3358.5,3358.1,0.00341054]
[1641467590513,0.74469,3358.5,3358.1,0.00341054]
[1641467590709,0.01157308,3358.4,3358.1,0.00341054]
[1641467592161,0.01157308,3358.4,3358.1,2.90341054]
[1641467592561,0.01157308,3358.4,3358.2,0.00284212]
[1641467593565,12.99472,3358.3,3358.2,0.00284212]
[1641467593763,0.74472,3358.3,3358.2,3.36976697]
[1641467593963,1.74472,3358.3,3358.2,3.36976697]
[1641467594165,0.74472,3358.3,3358.2,3.36976697]
[1641467594566,0.74472,3358.3,3358.2,0.00284212]
[1641467594965,0.01157308,3358.4,3358.2,0.00284212]
[1641467595606,0.01157308,3358.4,3358.2,1.88538766]
[1641467596006,0.01157308,3358.4,3358.3,0.00227369]
[1641467596207,0.75631308,3358.4,3358.3,0.00227369]
[1641467596809,0.75716124,3358.4,3358.2,0.00284212]
[1641467599254,5.75716124,3358.4,3358.2,0.00284212]
[1641467599850,5.75716124,3358.4,3358.2,1.73115195]
[1641467600050,5.01242124,3358.4,3358.2,1.73115195]
[1641467600251,5.01242124,3358.4,3358.3,0.00227369]
[1641467600652,3.49724407,3358.4,3358.3,0.00227369]
[1641467602055,3.49724407,3358.4,3358.3,4.42017442]
[1641467603318,3.49724407,3358.4,3358.3,3.36907838]
[1641467603715,3.49724407,3358.4,3358.3,3.66907838]
[1641467604516,3.49724407,3358.4,3358.3,5.06176263]
[1641467604926,3.49724407,3358.4,3358.3,3.66907838]
[1641467605118,3.49724407,3358.4,3358.3,3.36907838]
[1641467606755,4.24192407,3358.4,3358.3,3.36907838]
[1641467607751,4.24192407,3358.4,3358.3,0.00227369]
[1641467608151,4.24192407,3358.4,3358.2,0.00284212]
[1641467608351,4.24192407,3358.4,3358.2,3.36972244]
[1641467608751,4.24192407,3358.4,3358.3,0.00227369]
[1641467610615,4.24192407,3358.4,3358.2,0.00284212]
[1641467611814,4.24192407,3358.4,3358.2,3.36967655]
[1641467612214,4.24192407,3358.4,3358.3,0.00227369]
[1641467612719,3.49724407,3358.4,3358.3,0.00227369]
[1641467618300,3.49724407,3358.4,3358.3,0.00326823]
[1641467618503,3.49724407,3358.4,3358.3,0.00426277]
[1641467618902,3.38754407,3358.4,3358.3,0.00426277]
[1641467619803,3.38754407,3358.4,3358.3,3.3710972]
[1641467636456,3.0598,3359.5,3358.4,12.55]
[1641467636652,3.0598,3359.5,3359.2,1.9863964]
[1641467636854,3.7828,3359.9,3359.3,2.96022783]
[1641467637053,4.9852,3360.3,3359.3,2.96022783]
[1641467637253,0.00454739,3359.5,3359.3,3.70453363]
[1641467637754,0.00397897,3359.4,3359.3,3.70453363]
[1641467637953,0.00397897,3359.4,3359.3,7.5607362]
[1641467638154,0.00397897,3359.4,3359.3,4.60050837]
[1641467638354,0.00397897,3359.4,3359.3,7.47986146]
[1641467638957,0.00397897,3359.4,3359.3,8.96846146]
[1641467639356,0.00397897,3359.4,3359.3,8.61846146]
[1641467639958,0.00397897,3359.4,3359.3,7.47986146]
[1641467640212,0.00397897,3359.4,3359.3,7.48236989]
[1641467640412,0.00397897,3359.4,3359.3,7.48487832]
[1641467640610,0.00397897,3359.4,3359.3,7.48738675]
[1641467641009,0.00397897,3359.4,3359.3,4.60803366]
[1641467641211,0.00397897,3360.2,3359.5,0.74431]
[1641467641416,0.00397897,3360.2,3359.7,0.74432]
[1641467641609,0.00454738,3360.2,3359.7,0.74432]
[1641467644265,0.74888738,3360.2,3359.7,0.74432]
[1641467644465,0.74888738,3360.2,3359.7,3.64432]
[1641467645668,0.74888738,3360.2,3359.7,2.9]
[1641467647267,0.74888738,3360.2,3359.8,0.74434]
[1641467647752,0.74888738,3360.5,3359.8,0.74434]
[1641467647953,1.04888738,3360.5,3359.9,0.00170527]
[1641467648153,0.00113685,3360.4,3359.9,0.00170527]
[1641467648951,0.74434,3360.2,3359.9,0.00170527]
[1641467649753,0.74434,3360.2,3359.9,0.74602527]
[1641467650152,0.74434,3360.2,3360.0,0.00113684]
[1641467651452,0.74434,3360.2,3360.1,0.00239773]
[1641467653157,7.09434,3360.2,3360.1,0.00239773]
[1641467653558,8.09434,3360.2,3360.1,0.00239773]
[1641467654358,7.09434,3360.2,3360.1,0.00239773]
[1641467654759,0.00113685,3360.4,3360.1,0.00239773]
[1641467654958,0.74434,3360.2,3360.1,0.00239773]
[1641467656100,0.00113685,3360.4,3360.1,0.00239773]
[1641467656101,0.74543685,3360.4,3360.1,0.00239773]
[1641467656402,1.04543685,3360.4,3360.1,0.00239773]
[1641467656801,0.74543685,3360.4,3360.1,0.00239773]
[1641467657602,0.74543685,3360.4,3360.2,0.01156633]
[1641467658002,0.00113685,3360.4,3360.2,0.01156633]
[1641467661258,0.74544685,3360.4,3360.2,0.01156633]
[1641467661455,12.55,3360.1,3359.8,0.00239773]
[1641467661654,1.43,3360.0,3359.8,0.00239773]
[1641467661860,0.73,3360.0,3359.8,0.00239773]
[1641467662053,1.43,3360.0,3359.8,0.00239773]
[1641467662256,0.43,3360.0,3359.8,0.00239773]
[1641467662458,12.56253153,3359.9,3358.7,5.04954062]
[1641467662716,0.7446656,3359.4,3358.7,5.04954062]
[1641467662903,0.43,3359.3,3358.8,0.00682108]
[1641467663102,0.43,3359.2,3358.8,0.00682108]
[1641467663303,0.43,3359.1,3358.8,0.00682108]
[1641467663505,12.69468,3358.9,3358.8,0.00991781]
[1641467663706,11.95,3358.9,3358.8,0.00309673]
[1641467664107,12.95,3358.9,3358.8,0.00309673]
[1641467664508,13.69465,3358.9,3358.8,1.30309673]
[1641467664708,13.99465,3358.9,3358.8,1.30309673]
[1641467664911,8.04465,3358.9,3358.8,1.30309673]
[1641467665308,2.04465,3358.9,3358.8,1.30309673]
[1641467665609,0.74465,3358.9,3358.8,1.30309673]
[1641467667057,0.43,3359.0,3358.8,1.30309673]
[1641467667461,0.43,3359.0,3358.9,0.00625266]
[1641467668958,1.17454,3359.0,3358.9,0.00625266]
[1641467669463,1.17454,3359.0,3358.9,3.37260433]
[1641467670226,0.43,3359.4,3358.9,3.37260433]
[1641467670621,0.43,3359.4,3359.0,0.00568424]
[1641467670820,0.03253128,3360.0,3359.0,1.33368214]
[1641467670821,0.43,3359.9,3359.0,1.33368214]
[1641467671021,0.43,3359.9,3359.7,2.19320591]
[1641467671222,1.48871,3360.2,3359.7,2.19320591]
[1641467671422,1.48871,3360.2,3359.8,0.00113685]
[1641467671620,1.78984684,3360.2,3359.8,0.00113685]
[1641467672020,0.74434,3360.1,3359.8,0.00113685]
[1641467672218,1.48866,3360.1,3359.8,0.00113685]
[1641467672622,1.48892,3359.7,3359.1,3.36635167]
[1641467672822,0.00113684,3360.2,3359.2,0.00454739]
[1641467673221,0.00113684,3360.2,3359.9,1.91454942]
[1641467673424,0.74439,3360.1,3359.9,1.91454942]
[1641467673822,1.04439,3360.1,3359.3,3.36635167]
[1641467674254,0.3,3360.1,3360.0,0.0029929]
[1641467674457,2.04559684,3360.2,3360.0,0.0029929]
[1641467674653,1.04559684,3360.2,3360.0,0.0029929]
[1641467674853,1.47559684,3360.2,3360.0,0.0029929]
[1641467675254,2.96447684,3360.2,3360.0,0.0029929]
[1641467675455,0.744469,3360.1,3360.0,0.0029929]
[1641467675653,13.29444,3360.1,3360.0,0.0029929]
[1641467675856,14.29444,3360.1,3360.0,0.0029929]
[1641467676054,13.29444,3360.1,3360.0,0.0029929]
[1641467676254,0.74444,3360.1,3360.0,0.0029929]
[1641467678112,1.04444,3360.1,3360.0,0.0029929]
[1641467678810,4.34444,3360.1,3360.0,0.0029929]
[1641467679212,0.74444,3360.1,3360.0,0.0029929]
[1641467680814,0.74444,3360.1,3360.0,1.04466087]
[1641467681015,0.43113684,3360.2,3360.0,1.04466087]
[1641467681016,0.00113684,3360.2,3360.0,1.04466087]
[1641467681215,0.00113684,3360.2,3360.0,1.34466087]
[1641467681865,0.00113684,3360.2,3360.1,3.36532606]
[1641467682361,2.78443684,3360.4,3360.2,4.95]
[1641467682561,0.6765772,3360.6,3360.3,15.53468806]
[1641467682761,6.17,3361.6,3361.5,1.42325694]
[1641467682961,6.17,3361.6,3360.4,6.7685]
[1641467683168,6.17,3361.6,3360.5,1.0]
[1641467683360,0.00738951,3361.5,3360.9,2.24373686]
[1641467683562,0.00738951,3361.5,3360.9,2.98766876]
[1641467683765,0.00682109,3361.4,3360.9,2.98766876]
[1641467683962,0.00682109,3361.4,3361.0,1.34108218]
[1641467684164,0.00625266,3361.3,3360.9,2.24373686]
[1641467684565,6.17,3361.6,3360.9,2.24373686]
[1641467684566,0.00568424,3361.2,3360.9,2.24373686]
[1641467684765,0.43,3362.3,3361.1,11.26293217]
[1641467684964,0.33664462,3362.5,3361.0,0.00113685]
[1641467685245,0.00170527,3361.5,3361.4,1.14786227]
[1641467685644,0.00170527,3361.5,3361.4,6.49786227]
[1641467686242,0.00170527,3361.5,3361.4,4.512117]
[1641467686544,0.00170527,3361.5,3361.4,6.30717087]
[1641467687342,0.00170527,3361.5,3361.4,2.94291614]
[1641467688842,0.00170527,3361.5,3361.4,1.79505387]
[1641467689857,0.00170527,3361.5,3361.4,3.07178238]
[1641467690457,0.00170527,3361.5,3361.4,6.02941844]
[1641467690657,0.00170527,3361.5,3361.4,7.02941844]
[1641467690859,0.00170527,3361.5,3361.4,4.07178238]
[1641467691261,4.10628247,3362.6,3361.6,0.7437919]
[1641467691659,0.00568423,3362.5,3361.5,1.0]
[1641467692058,0.00511581,3362.4,3361.4,7.46936064]
[1641467692458,4.10628247,3362.6,3361.4,7.46936064]
[1641467692459,0.00454739,3362.3,3362.2,2.17646998]
[1641467696764,0.00454739,3362.3,3362.2,3.47646998]
[1641467697167,0.00454739,3362.3,3362.2,3.48079201]
[1641467697563,0.00454739,3362.3,3362.2,4.48079201]
[1641467697766,0.00454739,3362.3,3362.2,3.48079201]
[1641467697962,0.00454739,3362.3,3362.2,4.48079201]
[1641467698163,0.00454739,3362.3,3362.2,3.48079201]
[1641467698563,0.00454739,3362.3,3362.2,9.68079201]
[1641467698770,0.00454739,3362.3,3362.2,4.48079201]
[1641467699164,0.00454739,3362.3,3362.2,6.58267754]
[1641467699365,0.00454739,3362.3,3362.2,7.58267754]
[1641467700416,0.00454739,3362.3,3362.2,4.48079201]
[1641467700619,0.00454739,3362.3,3362.2,3.48079201]
[1641467700815,0.00454739,3362.3,3362.2,1.30432203]
[1641467702815,0.00454739,3362.3,3362.2,3.0381965]
[1641467706565,0.27747498,3362.6,3362.2,3.0381965]
[1641467706962,0.00113684,3362.5,3362.2,3.0381965]
[1641467707463,5.0,3362.3,3362.2,3.0381965]
[1641467708140,5.0,3362.3,3362.2,1.30432203]
[1641467708942,5.0,3362.3,3362.2,1.30596029]
[1641467709542,8.95,3362.3,3362.2,3.05204765]
[1641467710041,5.0,3362.3,3362.2,3.05204765]
[1641467714075,5.0,3362.3,3361.5,0.04562583]
[1641467714076,12.55,3362.2,3361.5,0.04562583]
[1641467714276,12.56258142,3361.6,3361.5,0.04562583]
[1641467714472,12.99258142,3361.6,3361.5,0.04562583]
[1641467714671,14.29258142,3361.6,3360.3,1.50927976]
[1641467714875,16.34655095,3361.5,3360.3,1.50927976]
[1641467715073,0.43,3361.4,3360.4,0.01080005]
[1641467715723,0.43,3361.4,3360.2,0.0119369]
[1641467715921,0.43,3361.4,3360.7,1.91094494]
[1641467716323,0.43,3361.4,3360.8,0.00852636]
[1641467716524,1.17411,3361.4,3360.8,0.00852636]
[1641467716929,0.3,3361.3,3360.8,0.00852636]
[1641467717123,0.43,3361.2,3360.8,0.00852636]
[1641467717323,0.43,3361.2,3360.6,0.0096632]
[1641467717524,1.47414,3361.2,3360.4,1.3]
[1641467717725,0.73,3361.2,3360.5,0.01023163]
[1641467718126,2.15307599,3361.1,3360.5,0.01023163]
[1641467718526,0.3,3361.1,3360.5,0.01023163]
[1641467718728,0.74419,3361.0,3360.5,0.01023163]
[1641467718967,0.74419,3361.0,3360.3,0.01136847]
[1641467719161,1.04419,3361.0,3360.3,0.01136847]
[1641467720365,1.04419,3361.0,3360.4,3.37033212]
[1641467720765,1.04419,3361.0,3360.5,0.01023163]
[1641467721168,0.74424,3360.8,3360.5,0.01023163]
[1641467721366,1.17424,3360.8,3360.5,0.01023163]
[1641467721567,1.47424,3360.8,3360.5,0.01023163]
[1641467721866,2.47424,3360.8,3360.5,0.01023163]
[1641467722368,3.21856,3360.8,3360.5,0.01023163]
[1641467722569,2.21856,3360.8,3360.5,0.01023163]
[1641467722818,1.17424,3360.8,3360.5,0.01023163]
[1641467723016,0.43,3360.8,3360.5,0.01023163]
[1641467723618,0.43,3361.3,3360.5,0.01023163]
[1641467724220,0.43,3361.3,3360.8,1.84696972]
[1641467724621,0.43,3361.3,3360.9,0.00795793]
[1641467724819,0.73,3361.3,3360.9,0.00795793]
[1641467725822,5.0,3361.4,3360.9,3.00686941]
[1641467726026,5.0,3361.4,3360.9,0.00795793]
[1641467726221,5.0,3361.4,3361.0,0.00738951]
[1641467726458,5.0,3361.4,3360.8,3.02851594]
[1641467726459,5.0,3361.4,3360.9,0.00795793]
[1641467726662,5.0,3361.4,3360.9,0.75188793]
[1641467727062,5.0,3361.4,3361.0,0.00738951]
[1641467727365,5.0,3361.4,3361.0,3.37221433]
[1641467727761,5.0,3361.4,3361.1,0.00682109]
[1641467727962,5.0,3361.4,3361.1,0.75077109]
[1641467728366,5.0,3361.4,3361.2,0.00625266]
[1641467728763,5.0,3361.4,3361.2,3.37107748]
[1641467729164,5.0,3361.4,3361.3,0.00568424]
[1641467729967,5.0,3361.4,3361.2,0.00625266]
[1641467730507,5.0,3361.4,3361.3,3.36482482]
[1641467730809,5.0,3361.4,3361.3,3.37050906]
[1641467731011,5.0,3361.4,3361.3,0.00568424]
[1641467732312,5.0,3361.4,3361.3,3.3704663]
[1641467732911,5.0,3361.4,3361.3,0.00568424]
[1641467733961,5.0,3361.4,3361.3,3.37046058]
[1641467735863,5.0,3361.4,3361.3,0.00568424]
[1641467739415,5.0,3361.4,3361.3,3.37039281]
[1641467740319,4.9784079,3361.4,3361.3,3.37039281]
[1641467740817,4.9784079,3361.4,3361.3,0.00568424]
[1641467742261,4.9284079,3361.4,3361.3,0.00568424]
[1641467745525,4.92167842,3361.4,3361.3,0.00568424]
[1641467746523,7.95781026,3361.4,3361.3,0.00568424]
[1641467748623,5.92167842,3361.4,3361.3,0.00568424]
[1641467748822,4.92167842,3361.4,3361.3,0.00568424]
[1641467749863,6.75797532,3361.4,3361.3,0.00568424]
[1641467750265,6.75208861,3361.4,3361.3,0.00568424]
[1641467750668,6.75208861,3361.4,3360.7,0.75321478]
[1641467750865,0.74416,3361.1,3360.7,0.00909478]
[1641467751066,0.74416,3361.1,3360.8,0.00852636]
[1641467751266,0.74416,3361.1,3360.7,0.00909478]
[1641467751665,0.74416,3361.1,3360.5,0.01023163]
[1641467751865,11.29049954,3360.6,3360.5,0.01023163]
[1641467752067,12.03484954,3360.6,3360.5,0.01023163]
[1641467752729,12.03484954,3360.6,3360.1,2.01112168]
[1641467752730,12.55,3360.4,3360.1,2.01112168]
[1641467752927,12.55,3360.4,3358.8,6.49218658]
[1641467752928,12.98,3360.4,3360.3,1.50847314]
[1641467753133,14.28,3360.4,3360.3,1.50847314]
[1641467753327,11.05,3360.3,3360.0,2.18344524]
[1641467753524,0.43,3360.2,3360.0,2.18344524]
[1641467753727,0.7445,3360.1,3359.8,3.01668252]
[1641467754026,0.43,3360.0,3359.9,0.00170527]
[1641467754629,0.43,3360.0,3359.1,0.00625265]
[1641467754928,1.919,3360.0,3359.1,0.00625265]
[1641467755129,1.77223937,3359.8,3359.1,0.00625265]
[1641467755329,1.77223937,3359.8,3359.1,0.74447]
[1641467755727,1.77223937,3359.8,3359.2,0.00568423]
[1641467756571,1.0,3359.9,3359.2,0.00568423]
[1641467756771,1.919,3360.0,3359.2,0.75011423]
[1641467756974,0.74447,3359.6,3359.2,0.75011423]
[1641467757173,1.919,3360.0,3359.3,0.00511581]
[1641467757573,4.06106339,3360.0,3359.2,0.00568423]
[1641467757773,43.81746239,3360.0,3359.2,0.00568423]
[1641467757976,1.0,3359.9,3359.2,0.00568423]
[1641467758477,0.74445,3359.6,3359.2,0.00568423]
[1641467758675,0.74445,3359.6,3359.2,0.75012423]
[1641467758874,40.186399,3360.0,3359.2,0.75012423]
[1641467759075,40.186399,3360.0,3359.3,0.00511581]
[1641467759474,40.186399,3360.0,3359.2,1.05064984]
[1641467759675,39.756399,3360.0,3359.5,2.58508325]
[1641467759876,39.756399,3360.0,3359.5,1.84069325]
[1641467760080,39.756399,3360.0,3359.6,0.00341054]
[1641467760721,39.756399,3360.0,3359.6,1.49205424]
[1641467760920,39.756399,3360.0,3359.7,0.74434]
[1641467761118,39.756399,3360.0,3359.7,0.74718211]